bitfinex/quotes_ETHUSD_20260208
["timestamp","ask_amount","ask_price","bid_price","bid_amount"]
[1770518773118,0.04043864,2089.5,2089.3,0.001]
[1770518773317,1.19634397,2089.7,2089.3,0.001]
[1770518773717,2.17113421,2089.7,2089.3,0.001]
[1770518774826,0.97479024,2089.6,2089.3,0.001]
[1770518775034,5.14395608,2089.5,2089.1,0.001]
[1770518775236,2.17130598,2089.4,2089.1,0.001]
[1770518776536,0.97479024,2089.3,2089.1,0.001]
[1770518777134,0.97479024,2089.3,2088.5,0.94231342]
[1770518777337,1.19663028,2089.2,2088.5,0.94231342]
[1770518779120,2.17142052,2089.2,2088.5,0.94231342]
[1770518779922,2.17142052,2089.2,2089.0,0.001]
[1770518780118,2.17142052,2089.2,2088.5,0.94231342]
[1770518781146,0.97479024,2089.1,2088.4,1.1970848]
[1770518781452,1.19674485,2089.0,2088.3,0.94231342]
[1770518782251,2.17151693,2089.1,2088.3,0.94231342]
[1770518782429,1.19660254,2089.3,2088.3,0.94231342]
[1770518782843,2.17139278,2089.3,2088.3,0.94231342]
[1770518783021,0.97479024,2089.2,2088.3,0.94231342]
[1770518784124,2.17147545,2089.2,2088.4,2.1394021]
[1770518784854,0.97479024,2089.1,2088.4,0.94231342]
[1770518785546,1.19668521,2089.2,2088.4,0.94231342]
[1770518785723,1.19661473,2089.3,2088.4,0.94231342]
[1770518786236,0.04043864,2089.8,2088.4,0.94231342]
[1770518786237,4.7851469,2089.9,2088.6,0.94231342]
[1770518786540,0.97479024,2089.8,2088.6,0.94231342]
[1770518786731,4.7851469,2089.9,2088.6,0.94231342]
[1770518787342,5.75993714,2089.9,2088.6,0.94231342]
[1770518787742,0.1024,2090.0,2088.6,0.94231342]
[1770518788137,0.97479024,2089.8,2088.8,0.94231342]
[1770518792772,2.17108325,2089.8,2088.9,1.19680214]
[1770518792966,4.78446007,2090.2,2089.0,0.94231342]
[1770518792967,0.97479024,2090.2,2089.0,0.94231342]
[1770518793635,0.002,2089.8,2089.0,0.94231342]
[1770518795167,0.002,2089.8,2089.2,0.94231342]
[1770518797567,0.002,2089.8,2089.4,0.91385886]
[1770518799966,0.002,2089.8,2089.5,1.19645848]
[1770518800173,0.002,2089.8,2089.6,0.91385886]
[1770518800480,0.91765983,2090.4,2089.7,0.91385886]
[1770518800684,2.11552192,2090.6,2089.8,0.91385886]
[1770518801358,0.002,2090.6,2089.8,0.91385886]
[1770518802383,0.002,2090.6,2090.2,0.91385886]
[1770518804270,0.002,2090.6,2090.4,0.91385886]
[1770518804485,0.002,2090.6,2090.3,1.19600057]
[1770518805171,1e-08,2090.8,2090.4,0.91385886]
[1770518806315,1e-08,2090.8,2090.5,1.19588615]
[1770518806783,0.002,2090.6,2090.5,1.19588615]
[1770518807787,0.002,2090.6,2090.5,2.10974501]
[1770518812373,0.002,2090.6,2089.6,2.32333175]
[1770518812603,0.91965983,2090.6,2090.0,1.19613153]
[1770518812903,0.91965983,2090.6,2090.1,1.19611154]
[1770518813412,0.002,2090.6,2090.5,1.19588615]
[1770518814407,0.002,2090.6,2090.4,1.19594336]
[1770518815215,0.002,2090.6,2090.4,2.10980222]
[1770518816909,1e-08,2090.8,2090.5,0.91385886]
[1770518818794,0.002,2090.6,2090.5,2.10974501]
[1770518818996,1e-08,2090.8,2090.5,2.10974501]
[1770518820820,1e-08,2090.8,2090.6,0.91385886]
[1770518821106,1e-08,2090.8,2090.7,1.19577175]
[1770518821302,1e-08,2090.8,2090.7,2.10963061]
[1770518821689,1e-08,2090.8,2090.7,1.19577175]
[1770518822016,1e-08,2090.8,2090.6,1.19582146]
[1770518823012,1e-08,2090.8,2090.3,4.78391326]
[1770518823181,1e-08,2090.8,2090.5,5.97925287]
[1770518824522,0.002,2091.3,2090.6,0.91385886]
[1770518824691,0.002,2091.5,2090.7,0.91385886]
[1770518825103,0.002,2091.5,2090.9,0.91385886]
[1770518825716,0.002,2091.5,2091.1,0.9791199]
[1770518827097,2.11468937,2092.0,2091.3,0.9791199]
[1770518827098,0.002,2092.0,2091.3,0.9791199]
[1770518827297,0.002,2092.0,2091.5,0.9791199]
[1770518827700,0.002,2092.2,2091.7,0.9791199]
[1770518828103,0.002,2092.2,2091.8,6.95837277]
[1770518828305,0.002,2092.2,2091.8,0.9791199]
[1770518828693,0.94143969,2092.8,2091.4,5.97925287]
[1770518828694,0.002,2092.8,2092.0,0.9791199]
[1770518828925,0.002,2092.8,2092.1,5.97925287]
[1770518829112,0.002,2092.8,2092.2,1.19491444]
[1770518829524,0.002,2092.8,2092.3,5.97925287]
[1770518829706,0.002,2093.1,2092.4,0.9791199]
[1770518830109,0.002,2093.1,2092.5,6.95837277]
[1770518830319,0.002,2093.1,2092.5,0.9791199]
[1770518830521,0.002,2093.1,2092.6,5.97925287]
[1770518830704,0.94143969,2093.1,2092.3,5.97925287]
[1770518831123,0.94143969,2093.1,2092.4,1.19480022]
[1770518832305,0.98737199,2093.1,2092.5,5.97925287]
[1770518832732,0.98737199,2093.1,2092.4,1.19480022]
[1770518832933,0.98737199,2093.1,2092.4,7.17405309]
[1770518836818,0.98537199,2093.0,2092.4,7.17405309]
[1770518837932,0.98537199,2093.0,2091.9,4.78027936]
[1770518838229,0.98537199,2093.0,2092.2,1.19490837]
[1770518838639,0.98537199,2093.0,2092.3,5.97925287]
[1770518838815,0.98537199,2092.9,2092.3,7.17407765]
[1770518839710,1.19640416,2093.1,2092.3,7.17407765]
[1770518839711,0.98737199,2093.1,2092.3,7.17407765]
[1770518839931,0.98537199,2093.0,2092.3,7.17407765]
[1770518840538,0.98537199,2093.0,2092.3,5.97925287]
[1770518840840,0.98537199,2092.5,2091.8,0.001]
[1770518841011,0.98537199,2092.5,2091.9,5.97925287]
[1770518843145,0.98537199,2092.5,2091.9,7.17432988]
[1770518843863,2.18014477,2092.5,2091.9,5.97925287]
[1770518844846,0.98537199,2092.4,2091.9,5.97925287]
[1770518845027,0.98537199,2092.2,2091.9,5.97925287]
[1770518845921,0.98537199,2092.2,2091.8,0.001]
[1770518846125,1.02581063,2092.2,2091.8,0.001]
[1770518847746,0.98537199,2092.0,2091.8,0.001]
[1770518848050,0.98537199,2092.0,2091.8,5.98025287]
[1770518849050,0.98537199,2092.0,2091.5,0.001]
[1770518849256,0.98537199,2092.0,2091.6,5.97925287]
[1770518850155,2.18045779,2091.9,2091.6,5.97925287]
[1770518850362,0.98537199,2091.8,2091.5,0.001]
[1770518850656,0.98537199,2091.8,2091.5,5.98025287]
[1770518851748,2.18042714,2092.0,2091.5,5.98025287]
[1770518851948,2.18042714,2092.0,2091.5,0.001]
[1770518852354,1.19485733,2092.3,2091.6,5.97925287]
[1770518852767,2.18022932,2092.3,2091.6,5.97925287]
[1770518853661,1.19484001,2092.4,2091.6,6.95913767]
[1770518854152,2.180212,2092.4,2091.6,6.95913767]
[1770518854466,2.180212,2092.4,2091.7,1.19520007]
[1770518854664,2.180212,2092.4,2091.6,8.15435158]
[1770518855440,2.180212,2092.4,2091.8,0.001]
[1770518858740,1.29902894,2092.7,2091.9,5.97925287]
[1770518858965,2.20217087,2092.7,2091.9,5.97925287]
[1770518860141,2.20217087,2092.7,2091.9,7.17433726]
[1770518860142,2.09977087,2092.7,2091.9,7.17433726]
[1770518860342,0.90314193,2092.6,2092.0,5.97925287]
[1770518860963,1.19474313,2092.5,2092.0,5.97925287]
[1770518866389,0.90314193,2092.4,2092.0,5.97925287]
[1770518867280,0.90314193,2092.4,2092.0,5.98025287]
[1770518867460,0.002,2092.3,2092.0,5.98025287]
[1770518868549,0.90514193,2092.3,2092.0,5.98025287]
[1770518868748,0.90514193,2092.3,2092.0,0.001]
[1770518869779,0.90514193,2092.3,2092.0,5.98025287]
[1770518872681,2.10004968,2092.3,2092.0,5.98025287]
[1770518875976,2.10004968,2092.3,2091.8,0.001]
[1770518875977,0.94358057,2092.2,2091.8,0.001]
[1770518877876,0.90314193,2092.0,2091.8,0.001]
[1770518880164,2.09822627,2092.0,2091.8,0.001]
[1770518880362,2.10016075,2092.1,2091.8,0.001]
[1770518880565,0.002,2092.1,2091.8,0.94067507]
[1770518881469,0.90314193,2092.0,2091.8,0.001]
[1770518881893,2.10011972,2092.1,2091.8,0.001]
[1770518882863,0.90314193,2092.0,2091.8,0.001]
[1770518885379,2.09822773,2091.9,2091.8,0.001]
[1770518887400,5.02952643,2092.1,2091.8,0.001]
[1770518887688,0.90547774,2092.0,2091.8,0.001]
[1770518887895,0.90547774,2092.0,2091.5,0.001]
[1770518889984,2.10056354,2091.9,2091.5,0.001]
[1770518890386,0.90547774,2091.8,2091.5,0.001]
[1770518890582,0.90547774,2091.6,2090.9,0.96766272]
[1770518891798,5.31713449,2091.9,2090.9,0.96766272]
[1770518891975,6.22261223,2091.9,2090.9,0.96766272]
[1770518892180,6.22261223,2091.9,2091.0,0.96666272]
[1770518892682,1.19502868,2092.0,2091.2,0.92156157]
[1770518892888,0.002,2091.8,2091.2,0.92156157]
[1770518895177,0.002,2091.8,2091.3,0.92156157]
[1770518902013,0.002,2091.8,2091.1,0.92156157]
[1770518902813,0.99114624,2091.8,2091.1,0.92156157]
[1770518904923,1.19520007,2091.7,2091.3,0.001]
[1770518905300,0.002,2091.6,2091.3,0.001]
[1770518907928,0.002,2091.6,2091.3,0.92256157]
[1770518920342,0.002,2091.6,2091.4,0.9939037]
[1770518920839,0.002,2091.6,2091.3,1.19642199]
[1770518924206,0.002,2091.6,2091.4,0.9939037]
[1770518924727,0.002,2091.6,2091.3,1.19642199]
[1770518927831,0.002,2091.6,2091.3,0.001]
[1770518928810,0.002,2091.6,2091.5,0.001]
[1770518939048,0.98430188,2091.6,2091.5,0.001]
[1770518940551,0.002,2091.6,2091.5,0.001]
[1770518944353,0.98430188,2091.6,2091.5,0.001]
[1770518945754,2.17958897,2091.6,2091.3,0.001]
[1770518950154,0.002,2091.6,2091.3,0.001]
[1770518952252,0.002,2091.6,2091.3,0.91792197]
[1770518954163,0.002,2091.6,2091.5,0.001]
[1770518958762,0.96549015,2091.6,2091.3,0.001]
[1770518959343,2.15880451,2091.5,2091.3,0.001]
[1770518963482,0.96349015,2091.4,2091.3,0.001]
[1770518963668,1.19531436,2091.5,2091.3,0.001]
[1770518966154,1.19730022,2091.6,2091.3,0.001]
[1770518966365,0.002,2091.5,2091.3,0.001]
[1770518968466,0.96549015,2091.5,2091.3,0.001]
[1770518972683,0.002,2091.5,2091.3,0.001]
[1770518980978,0.002,2091.5,2091.0,0.001]
[1770518982400,1.19731436,2091.5,2091.0,0.001]
[1770518983778,0.96289243,2091.4,2091.0,0.001]
[1770518983982,1.19731436,2091.5,2091.0,0.001]
[1770518986507,0.96289243,2091.4,2091.0,0.001]
[1770518988505,1.19542868,2091.3,2091.0,0.001]
[1770518991404,1.19542868,2091.3,2091.2,0.001]
[1770518991806,1.19742868,2091.3,2091.2,0.001]
[1770518993505,0.002,2091.3,2091.2,0.001]
[1770518998914,2.16032111,2091.3,2091.0,0.001]
[1770518999084,0.96289243,2091.2,2090.7,0.001]
[1770518999285,1.19742868,2091.3,2090.7,0.001]
[1770518999494,1.19742868,2091.3,2090.7,0.94553063]
[1770519001723,0.002,2091.5,2090.9,0.94453063]
[1770519003705,0.002,2091.5,2091.0,0.94453063]
[1770519004494,0.002,2091.1,2091.0,0.94453063]
[1770519005199,0.002,2091.3,2091.0,0.94453063]
[1770519005401,0.002,2091.5,2091.3,0.94453063]
[1770519006002,0.002,2092.0,2091.3,0.90292874]
[1770519006420,0.002,2092.0,2091.4,0.90292874]
[1770519007034,0.002,2092.1,2091.8,0.90292874]
[1770519007203,0.004,2092.1,2091.4,0.90292874]
[1770519007391,0.004,2092.1,2091.6,0.90292874]
[1770519008027,0.004,2092.1,2091.4,0.90292874]
[1770519008028,0.96624469,2092.1,2091.4,0.90292874]
[1770519008494,0.96224469,2091.9,2091.2,0.90292874]
[1770519008889,0.96424469,2091.8,2091.2,0.90292874]
[1770519009512,2.15940083,2091.8,2091.2,0.90292874]
[1770519009693,2.15940083,2091.8,2091.2,2.09841306]
[1770519009893,0.002,2091.8,2091.2,2.09841306]
[1770519010417,1.1950625,2092.0,2091.3,0.90292874]
[1770519010607,0.002,2091.8,2091.3,0.90292874]
[1770519011520,0.002,2091.8,2091.2,0.90292874]
[1770519011716,0.002,2091.8,2091.3,2.09835232]
[1770519011893,0.002,2091.8,2091.4,0.90292874]
[1770519015491,0.002,2091.8,2091.4,2.09829062]
[1770519015696,0.002,2091.8,2091.5,0.9110711]
[1770519016599,0.002,2091.8,2091.6,0.001]
[1770519018895,0.002,2091.8,2091.6,0.9120711]
[1770519019126,0.002,2091.9,2091.6,0.9120711]
[1770519019617,0.004,2091.9,2091.6,0.001]
[1770519019820,0.99978078,2091.9,2091.6,0.001]
[1770519020413,2.19488375,2091.9,2091.6,0.001]
[1770519020613,1.19910297,2091.9,2091.6,0.001]
[1770519020813,2.19488375,2091.9,2091.6,0.001]
[1770519024035,0.004,2091.9,2091.6,0.001]
[1770519024738,1.19909256,2091.9,2091.6,0.001]
[1770519026447,0.004,2091.9,2091.6,0.001]
[1770519029137,0.004,2091.9,2091.8,0.001]
[1770519029514,0.002,2091.9,2091.8,0.001]
[1770519030623,0.002,2091.9,2091.8,0.9120711]
[1770519035345,0.002,2092.1,2091.8,0.9120711]
[1770519035535,0.004,2092.1,2091.8,0.9120711]
[1770519035744,0.002,2092.1,2091.8,0.9120711]
[1770519036326,0.002,2092.1,2091.9,0.97006567]
[1770519039938,0.002,2092.2,2092.0,2.16509435]
[1770519040447,0.002,2092.2,2092.1,0.97006567]
[1770519040648,0.002,2092.3,2092.2,0.97006567]
[1770519041153,0.002,2092.5,2092.2,0.97006567]
[1770519042040,0.002,2092.5,2092.3,0.97006567]
[1770519042757,0.002,2092.7,2092.3,0.97006567]
[1770519043150,0.002,2092.7,2092.3,5.09428202]
[1770519043345,0.002,2092.7,2092.4,0.97006567]
[1770519044032,0.002,2092.7,2092.5,2.1648088]
[1770519044457,0.002,2092.7,2092.5,1.19474313]
[1770519045946,0.002,2092.7,2092.4,1.19475837]
[1770519046238,0.002,2092.7,2092.3,5.7494152]
[1770519046453,0.002,2092.7,2092.4,0.97006567]
[1770519046649,0.002,2092.7,2092.3,4.77934953]
[1770519046831,0.002,2092.7,2092.1,2.16600986]
[1770519047038,0.93062269,2092.7,2092.1,0.97106567]
[1770519047343,0.93062269,2092.7,2092.1,1.19596961]
[1770519049058,0.93062269,2092.7,2092.1,0.001]
[1770519049059,0.92862269,2092.5,2092.1,0.001]
[1770519052060,0.92862269,2092.3,2092.1,0.001]
[1770519054967,2.12549432,2092.3,2092.1,0.001]
[1770519057644,1.19687163,2092.3,2092.1,0.001]
[1770519057844,0.92862269,2092.2,2092.1,0.001]
[1770519059166,0.002,2092.3,2092.1,0.001]
[1770519060376,0.002,2092.3,2092.1,0.97106567]
[1770519063780,0.002,2092.3,2092.1,0.001]
[1770519064485,0.002,2092.3,2092.1,0.97106567]
[1770519064668,0.002,2092.3,2092.1,0.001]
[1770519066978,0.002,2092.3,2092.1,0.99126228]
[1770519067895,0.002,2092.3,2092.1,0.001]
[1770519070663,0.002,2092.5,2092.2,0.99026228]
[1770519071220,0.9611668,2092.4,2091.2,0.001]
[1770519071493,0.9611668,2092.4,2091.1,0.99026228]
[1770519071494,0.04043864,2091.4,2091.0,4.53759743]
[1770519071668,0.92072816,2091.6,2091.0,4.33226228]
[1770519071872,0.9611668,2091.8,2091.0,4.33226228]
[1770519072491,0.9611668,2091.8,2091.1,0.97329148]
[1770519072796,1.19520007,2091.7,2091.1,0.97329148]
[1770519073362,1.19504436,2092.0,2091.3,0.97329148]
[1770519073589,1.235483,2092.0,2091.3,0.97329148]
[1770519074177,2.14630208,2092.1,2091.4,5.09199688]
[1770519074381,1.19499888,2092.1,2091.5,0.97329148]
[1770519074561,1.19499888,2092.1,2091.6,3.341]
[1770519075410,4.77966778,2092.2,2091.6,4.31429148]
[1770519075794,1.19491444,2092.2,2091.6,4.31429148]
[1770519078398,0.9533032,2092.5,2091.7,0.97329148]
[1770519078697,2.14614223,2092.4,2091.7,0.97329148]
[1770519078994,2.18658087,2092.4,2091.7,0.97329148]
[1770519081073,2.18658087,2092.4,2091.9,0.001]
[1770519081275,0.002,2092.3,2091.9,0.001]
[1770519081690,0.002,2092.3,2091.9,0.97429148]
[1770519082796,0.002,2092.3,2092.0,0.97329148]
[1770519084880,0.002,2092.3,2092.0,2.16830955]
[1770519085204,0.002,2092.3,2092.1,0.97329148]
[1770519085395,0.002,2092.3,2092.2,3.341]
[1770519087302,0.9533032,2092.3,2091.9,0.001]
[1770519087478,0.9533032,2092.3,2092.2,3.341]
[1770519088203,0.002,2092.3,2092.2,3.341]
[1770519089681,0.002,2092.3,2092.2,4.31429148]
[1770519090111,0.002,2092.3,2092.2,5.50920592]
[1770519090610,0.002,2092.5,2092.2,4.31429148]
[1770519090790,0.002,2092.5,2092.3,0.97329148]
[1770519090990,0.002,2092.7,2092.3,0.97329148]
[1770519091992,0.002,2092.7,2092.2,4.53591153]
[1770519092193,0.002,2092.7,2092.2,5.50920301]
[1770519092904,0.002,2092.7,2092.3,0.97329148]
[1770519095118,0.002,2092.3,2092.2,1.19491444]
[1770519095290,0.002,2092.3,2092.2,4.53591444]
[1770519096621,0.002,2092.7,2092.2,5.48934311]
[1770519100504,0.002,2092.7,2092.3,0.95342867]
[1770519101912,0.002,2092.7,2092.3,2.14823699]
[1770519102114,0.002,2092.7,2092.4,0.95342867]
[1770519103909,0.002,2092.7,2092.4,2.14821374]
[1770519105125,0.002,2092.7,2092.4,1.19478507]
[1770519106633,0.002,2092.7,2092.3,1.19485733]
[1770519106836,0.002,2092.7,2092.3,2.148286]
[1770519107205,0.002,2092.7,2092.4,0.001]
[1770519107517,0.002,2092.5,2092.4,0.001]
[1770519107718,0.002,2092.7,2092.4,0.001]
[1770519110236,0.97665094,2092.7,2092.5,3.34]
[1770519119816,0.97665094,2092.7,2092.6,3.34]
[1770519126443,0.002,2092.7,2092.6,3.34]
[1770519127923,5.35477778,2092.7,2092.1,0.001]
[1770519128121,1.19474313,2092.5,2092.2,3.34]
[1770519128321,0.97745207,2092.4,2092.2,3.34]
[1770519130048,0.04243864,2092.7,2092.2,3.34]
[1770519130049,1.19666328,2092.7,2092.2,3.34]
[1770519130345,2.17411535,2092.7,2092.2,3.34]
[1770519132425,0.98828638,2092.6,2092.2,3.34]
[1770519132649,0.98828638,2092.3,2092.1,0.001]
[1770519132832,0.98828638,2092.3,2092.2,2.341]
[1770519133028,0.98828638,2092.3,2092.1,3.341]
[1770519134239,0.98828638,2092.3,2092.0,0.001]
[1770519134441,2.18315264,2092.3,2092.0,0.001]
[1770519145573,2.18315264,2092.3,2092.2,0.001]
[1770519145781,2.18315264,2092.3,2092.0,0.001]
[1770519145949,5.10799658,2092.1,2091.8,3.341]
[1770519146261,0.99028638,2092.1,2091.8,3.341]
[1770519146642,1.02872502,2092.0,2091.8,3.341]
[1770519147053,0.98828638,2092.0,2091.8,3.341]
[1770519148148,2.18335895,2092.0,2091.6,0.001]
[1770519148960,2.22379759,2092.0,2091.6,0.001]
[1770519150446,0.98828638,2091.9,2091.6,0.001]
[1770519152361,1.19514293,2091.8,2091.6,0.001]
[1770519152961,1.19514293,2091.8,2091.4,0.001]
[1770519153148,5.10599658,2091.5,2091.1,0.001]
[1770519153343,0.04043864,2091.4,2091.1,0.001]
[1770519153964,1.02872502,2091.4,2091.1,0.001]
[1770519154366,1.19542868,2091.3,2091.1,0.001]
[1770519154867,1.19542868,2091.3,2090.3,0.99162725]
[1770519154868,1.02872502,2091.0,2090.3,0.99162725]
[1770519156071,5.02704723,2090.9,2090.3,0.99162725]
[1770519156453,2.10539482,2090.2,2089.2,0.95877581]
[1770519156666,0.94977567,2090.0,2089.2,0.95877581]
[1770519157473,0.90933703,2089.8,2089.0,2.15549137]
[1770519157770,0.04043864,2090.0,2089.1,0.95877581]
[1770519157945,0.94977567,2090.0,2089.1,0.95877581]
[1770519158650,5.06748587,2089.7,2088.9,1.19675636]
[1770519158957,5.06748587,2089.7,2088.9,2.15553217]
[1770519159361,0.94977567,2089.7,2088.9,2.15553217]
[1770519159769,0.94977567,2089.7,2088.9,2.15554604]
[1770519160470,4.88731793,2090.1,2088.2,4.78879631]
[1770519160471,2.10547401,2090.1,2089.2,0.95877581]
[1770519160656,2.10547401,2090.1,2089.4,0.95877581]
[1770519162064,1.23661221,2090.0,2089.4,0.95877581]
[1770519163866,0.04043864,2090.0,2089.4,2.15528501]
[1770519164062,1.19603259,2090.3,2089.5,0.95877581]
[1770519164371,1.23647123,2090.3,2089.5,0.95877581]
[1770519164770,2.14580826,2090.3,2089.5,0.95877581]
[1770519165563,1.19575417,2090.8,2089.5,0.95877581]
[1770519165986,0.04043864,2090.8,2089.7,0.95877581]
[1770519166498,0.04043864,2090.8,2090.4,0.0008]
[1770519168998,0.3868115,2091.6,2090.4,0.0008]
[1770519169187,0.04043864,2091.1,2090.4,0.95957581]
[1770519170379,0.04043864,2091.1,2090.5,2.15466196]
[1770519170788,0.002,2090.9,2090.5,2.15466196]
[1770519173683,0.002,2090.9,2090.4,0.0008]
[1770519173890,0.002,2090.9,2090.4,1.19673988]
[1770519174907,0.002,2090.9,2090.4,0.0008]
[1770519175730,0.94977567,2090.7,2090.4,0.0008]
[1770519175889,0.94977567,2090.7,2089.9,1.19622713]
[1770519176401,0.94977567,2090.7,2089.8,2.15502281]
[1770519177615,0.94977567,2090.4,2089.4,5.74483452]
[1770519177918,0.94977567,2090.4,2089.6,1.19639967]
[1770519178125,0.94977567,2090.4,2089.6,2.15517548]
[1770519179845,0.04043864,2090.1,2089.6,0.95877581]
[1770519180145,0.90933703,2090.2,2089.4,2.15526551]
[1770519180322,0.04043864,2090.0,2089.4,1.1965041]
[1770519180714,0.04043864,2090.0,2089.3,1.19755176]
[1770519181014,0.04043864,2090.0,2089.3,0.001]
[1770519181015,0.94977567,2090.0,2089.3,0.001]
[1770519181210,0.94977567,2090.0,2089.3,1.19756765]
[1770519181406,0.94977567,2090.0,2089.3,0.001]
[1770519182065,1.19621405,2090.0,2089.3,0.95977581]
[1770519182228,2.10555108,2090.0,2089.3,0.95977581]
[1770519182837,2.14598972,2090.0,2089.3,0.95977581]
[1770519183740,2.14598972,2090.0,2089.3,0.001]
[1770519184446,0.90933703,2090.0,2089.3,0.95977581]
[1770519184624,2.10548079,2090.1,2089.3,0.95977581]
[1770519184830,2.14591943,2090.1,2089.3,0.95977581]
[1770519185951,0.94938591,2090.0,2089.8,0.0008]
[1770519187654,2.1455698,2090.0,2089.8,0.0008]
[1770519188282,1.19618389,2090.0,2089.8,0.0008]
[1770519189552,1.23659256,2090.1,2089.8,0.0008]
[1770519190954,2.18597847,2090.1,2089.8,0.0008]
[1770519191961,0.94938591,2090.7,2089.8,0.92146381]
[1770519192166,0.04043864,2090.8,2089.8,0.92146381]
[1770519192167,2.14510711,2090.8,2089.8,0.92146381]
[1770519193382,1.01633878,2090.7,2089.8,0.92146381]
[1770519194264,1.01633878,2090.7,2089.9,2.17382655]
[1770519194265,2.21213335,2090.7,2089.9,2.17382655]
[1770519195190,0.97590014,2090.7,2090.0,0.97759707]
[1770519196388,0.002,2090.9,2090.2,0.97759707]
[1770519197170,0.002,2090.5,2090.2,0.97759707]
[1770519200375,0.002,2090.5,2090.3,2.17359764]
[1770519201187,0.002,2090.5,2090.4,0.97759707]
[1770519203079,0.002,2090.5,2090.3,1.19600057]
[1770519204184,0.97590014,2090.3,2089.8,0.0008]
[1770519204688,2.21423822,2090.5,2089.8,0.97839707]
[1770519205490,0.97590014,2090.4,2089.8,0.0008]
[1770519206001,1.01633878,2090.2,2089.5,0.001]
[1770519206987,1.01633878,2089.9,2089.5,0.001]
[1770519208388,1.01633878,2089.9,2089.0,0.001]
[1770519208389,1.01633878,2089.3,2089.0,0.001]
[1770519208966,1.19663028,2089.2,2089.0,0.001]
[1770519209588,2.21294172,2089.3,2089.0,0.001]
[1770519211571,0.97590014,2089.2,2088.6,0.001]
[1770519211797,1.01633878,2089.0,2088.6,0.001]
[1770519213673,0.97590014,2088.8,2088.4,0.001]
[1770519213883,0.04043864,2088.7,2088.4,0.001]
[1770519214579,1.01633878,2088.7,2088.4,0.001]
[1770519215805,2.16016568,2088.6,2088.4,0.001]
[1770519215995,1.19697404,2088.6,2088.4,0.001]
[1770519216690,1.19697404,2088.6,2088.0,0.001]
[1770519216691,0.96319164,2088.5,2088.0,0.001]
[1770519216891,0.04043864,2088.1,2087.5,7.08945026]
[1770519217076,0.96319164,2088.3,2087.5,0.93680027]
[1770519217274,0.96319164,2088.5,2087.6,0.93680027]
[1770519217497,1.00363028,2088.4,2087.6,0.93680027]
[1770519217804,2.16033764,2088.3,2087.4,0.93680027]
[1770519217986,0.96319164,2088.2,2087.4,0.93680027]
[1770519218183,1.00363028,2088.1,2087.4,0.93680027]
[1770519218402,1.00363028,2088.1,2086.6,1.19812134]
[1770519218603,0.04043864,2087.8,2086.8,0.93680027]
[1770519219007,1.00363028,2087.8,2086.8,0.93680027]
[1770519219320,1.00363028,2087.8,2086.7,0.93680027]
[1770519219699,2.16062798,2087.8,2086.9,0.93680027]
[1770519220008,0.96319164,2087.8,2086.9,0.93680027]
[1770519220503,1.00363028,2088.2,2086.9,0.93680027]
[1770519220879,0.04043864,2087.9,2086.9,0.93680027]
[1770519221503,1.00363028,2087.6,2086.8,1.19800651]
[1770519221690,1.00363028,2087.5,2086.7,0.93680027]
[1770519222088,0.04043864,2087.5,2086.7,0.93680027]
[1770519222491,0.04043864,2087.5,2087.4,0.001]
[1770519222806,1.00363028,2087.5,2086.2,0.93680027]
[1770519223106,1.00363028,2087.5,2086.5,0.93780027]
[1770519223782,0.04043864,2087.2,2086.5,2.13594244]
[1770519223986,1.00363028,2086.9,2086.1,1.19838316]
[1770519224185,0.04043864,2086.8,2086.2,1.19832467]
[1770519224489,0.96319164,2087.1,2086.2,1.19834441]
[1770519224815,1.00363028,2086.9,2086.1,1.19840323]
[1770519225011,1.00363028,2087.2,2086.0,0.93680027]
[1770519225320,2.20128039,2087.5,2086.5,2.13497234]
[1770519225689,0.04043864,2087.2,2086.5,1.19817207]
[1770519225987,1.23824594,2087.2,2086.3,2.13506547]
[1770519226204,0.96319164,2087.1,2086.3,1.19828132]
[1770519226400,0.96319164,2087.1,2086.1,5.7303762]
[1770519226401,0.04043864,2086.9,2086.2,1.19832126]
[1770519227316,0.04043864,2086.9,2086.1,2.13516987]
[1770519227493,1.23824594,2087.2,2086.4,0.93680027]
[1770519228104,1.19770122,2087.4,2086.5,2.13497903]
[1770519228311,0.04043864,2087.2,2086.5,2.13497903]
[1770519229819,1.19770122,2087.4,2086.5,2.13497903]
[1770519231303,0.04043864,2087.2,2086.5,2.13497903]
[1770519232307,2.16089286,2087.4,2086.5,2.13497903]
[1770519233124,0.04043864,2087.2,2086.5,2.13497903]
[1770519233903,0.04043864,2087.2,2086.5,1.19817828]
[1770519234226,2.20142547,2087.2,2086.4,1.19823619]
[1770519234723,2.20142547,2087.2,2086.7,0.001]
[1770519234929,1.00363028,2087.2,2086.7,0.001]
[1770519235102,0.002,2087.0,2086.7,0.001]
[1770519237607,0.002,2087.0,2086.7,0.93780027]
[1770519238130,0.002,2087.0,2086.7,0.001]
[1770519240128,0.002,2087.0,2086.7,0.93780027]
[1770519240326,0.002,2087.0,2086.7,0.001]
[1770519240704,0.002,2087.0,2086.7,0.93780027]
[1770519241831,0.002,2087.2,2086.8,2.13480678]
[1770519242017,0.002,2087.2,2086.9,0.93680027]
[1770519244207,0.96519164,2087.2,2086.7,0.001]
[1770519244716,0.04043864,2087.1,2086.7,0.001]
[1770519244918,0.002,2087.2,2086.7,0.001]
[1770519245320,0.002,2087.2,2086.7,0.93780027]
[1770519246225,0.002,2087.2,2086.7,1.19902756]
[1770519248120,0.002,2087.0,2086.7,1.19902756]
[1770519248320,0.002,2087.0,2086.7,0.001]
[1770519249117,0.04243864,2087.0,2086.7,0.001]
[1770519249513,1.0022065,2087.0,2086.5,0.001]
[1770519250315,2.2001215,2087.0,2086.5,0.001]
[1770519250519,0.95976786,2086.9,2086.5,0.001]
[1770519251642,0.04043864,2086.7,2086.5,0.001]
[1770519251898,0.95976786,2086.6,2085.7,1.19861417]
[1770519252141,0.95976786,2086.1,2085.6,0.001]
[1770519252310,2.15818425,2086.1,2085.7,0.001]
[1770519252811,2.15818425,2086.1,2085.6,0.001]